Workbook

Sheet ORÇAMENTO
A1: <---- NUMERAR SERVIÇOS PARA CPU | E1: Ministério da Integração e do Desenvolvimento Regional - MIDR
E2: Companhia de Desenvolvimento dos Vales do São Francisco e do Parnaíba
E3: 1ª Superintendência Regional
B5: OBRA: | C5: PAVIMENTAÇÃO ASFÁLTICA EM PMF (PRE-MIST. A FRIO) - RECAPEAMENTO - VIAS DIVERSAS - RUBIM-MG | I5: BDI Serviços (%): | L5: ='BDI SERV'!D31 -> 21.22
B6: DATA: | C6: NOVEMBRO DE 2024 | I6: BDI Diferenciado Serviços (%): | L6: ='BDI FORN'!D31 -> 15
B7: PRAZO DE EXECUÇÃO: 180 DIAS | I7: BDI Fornecimentos (%): | L7: ='BDI FORN'!D31 -> 15
B8: PLANILHA DE ORÇAMENTAÇÃO
B9: ITEM | C9: CÓDIGO | D9: FONTE | E9: DISCRIMINAÇÃO | F9: TIPO | G9: UNID. | H9: QUANT. | I9: VR.UNIT.S/BDI | J9: PR. UNIT.C/BDI | K9: C. TOT.S/BDI | L9: P. TOT.C/BDI
A10: A | B10: 1 | E10: SERVIÇOS PRELIMINARES | K10: =SUM(K11:K14) -> 102765.23 | L10: =SUM(L11:L14) -> 124571.97
A11: 1 | B11: 1.1 | C11: CPU.1 | D11: CODEVASF | E11: MOBILIZAÇÃO E DESMOBILIZAÇÃO | F11: SERV | G11: GL | H11: 1 | I11: =VLOOKUP(A11,CPU!$A$1:$N$4640,9) -> 7227.84 | J11: =TRUNC(_xlfn.IFS(F11="SERV",I11*(1+$L$5/100),F11="SERV DIF",I11*(1+$L$6/100),F11="FORN",I11*(1+$L$7/100)),2) -> 8761.58 | K11: =TRUNC(H11*I11,2) -> 7227.84 | L11: =TRUNC(H11*J11,2) -> 8761.58
A12: 2 | B12: 1.2 | C12: CPU.2 | D12: CODEVASF | E12: ADMINISTRAÇÃO LOCAL | F12: SERV | G12: GL | H12: 1 | I12: =VLOOKUP(A12,CPU!$A$1:$N$4640,9) -> 76426.8 | J12: =TRUNC(_xlfn.IFS(F12="SERV",I12*(1+$L$5/100),F12="SERV DIF",I12*(1+$L$6/100),F12="FORN",I12*(1+$L$7/100)),2) -> 92644.56 | K12: =TRUNC(H12*I12,2) -> 76426.8 | L12: =TRUNC(H12*J12,2) -> 92644.56
A13: 3 | B13: 1.3 | C13: CPU.3 | D13: CODEVASF | E13: CANTEIRO DE OBRAS | F13: SERV | G13: GL | H13: 1 | I13: =VLOOKUP(A13,CPU!$A$1:$N$4640,9) -> 14567.66 | J13: =TRUNC(_xlfn.IFS(F13="SERV",I13*(1+$L$5/100),F13="SERV DIF",I13*(1+$L$6/100),F13="FORN",I13*(1+$L$7/100)),2) -> 17658.91 | K13: 14567.66 | L13: 17658.91
A14: 4 | B14: 1.4 | C14: 74209/001 | D14: SINAPI | E14: PLACA DE OBRA EM CHAPA DE AÇO GALVANIZADO | F14: SERV | G14: M2 | H14: 9 | I14: =VLOOKUP(A14,CPU!$A$1:$N$4640,9) -> 504.77 | J14: =TRUNC(_xlfn.IFS(F14="SERV",I14*(1+$L$5/100),F14="SERV DIF",I14*(1+$L$6/100),F14="FORN",I14*(1+$L$7/100)),2) -> 611.88 | K14: 4542.93 | L14: =TRUNC(H14*J14,2) -> 5506.92
A15: B | B15: 2 | E15: PAVIMENTAÇÃO | K15: =SUM(K16:K19) -> 423497.2 | L15: =SUM(L16:L19) -> 513271.1
A16: 10 | B16: 2.1 | C16: 101835 | D16: SINAPI | E16: RECOMPOSIÇÃO DE BASE E OU SUB-BASE PARA REMENDO PROFUNDO DE BICA CORRIDA - INCLUSO RETIRADA E COLOCAÇÃO DO MATERIAL | F16: SERV | G16: M3 | H16: 30 | I16: =VLOOKUP(A16,CPU!$A$1:$N$4640,9) -> 349.76 | J16: =TRUNC(_xlfn.IFS(F16="SERV",I16*(1+$L$5/100),F16="SERV DIF",I16*(1+$L$6/100),F16="FORN",I16*(1+$L$7/100)),2) -> 423.97 | K16: =TRUNC(H16*I16,2) -> 10492.8 | L16: =TRUNC(H16*J16,2) -> 12719.1
A17: 11 | B17: 2.2 | C17: 96402 | D17: SINAPI | E17: PINTURA DE LIGAÇÃO COM EMULSÃO ASFÁLTICA RR-1C | F17: SERV | G17: M2 | H17: 17000 | I17: =VLOOKUP(A17,CPU!$A$1:$N$4640,9) -> 1.01 | J17: =TRUNC(_xlfn.IFS(F17="SERV",I17*(1+$L$5/100),F17="SERV DIF",I17*(1+$L$6/100),F17="FORN",I17*(1+$L$7/100)),2) -> 1.22 | K17: 17170 | L17: 20740
A18: 11.5 | B18: 2.3 | C18: 101001 | D18: SINAPI | E18: CARGA DE MISTURA ASFÁLTICA EM CAMINHÃO BASCULANTE | F18: SERV | G18: T | H18: 2100 | I18: =VLOOKUP(A18,CPU!$A$1:$N$4640,9) -> 5.03 | J18: =TRUNC(_xlfn.IFS(F18="SERV",I18*(1+$L$5/100),F18="SERV DIF",I18*(1+$L$6/100),F18="FORN",I18*(1+$L$7/100)),2) -> 6.09 | K18: 10563 | L18: 12789
A19: 12 | B19: 2.4 | C19: 104371 | D19: SINAPI | E19: EXECUÇÃO DE PAVIMENTO COM APLICAÇÃO DE PRÉ-MISTURADO A FRIO, CAMADA DE ROLAMENTO - EXCLUSIVE TRANSPORTE | F19: SERV | G19: M3 | H19: 860 | I19: =VLOOKUP(A19,CPU!$A$1:$N$4640,9) -> 447.99 | J19: =TRUNC(_xlfn.IFS(F19="SERV",I19*(1+$L$5/100),F19="SERV DIF",I19*(1+$L$6/100),F19="FORN",I19*(1+$L$7/100)),2) -> 543.05 | K19: 385271.4 | L19: 467023
A20: C | B20: 3 | E20: TRANSPORTE DE MATERIAIS | K20: =SUM(K21:K22) -> 55020 | L20: =SUM(L21:L22) -> 66610
A21: 14 | B21: 3.1 | C21: 95427 | D21: SINAPI | E21: TRANSPORTE COM CAMINHÃO BASCULANTE, EM VIA URBANA PAVIMENTADA | F21: SERV | G21: M3XKM | H21: 44000.00426 | I21: =VLOOKUP(A21,CPU!$A$1:$N$4640,9,0) -> 0.76 | J21: =TRUNC(_xlfn.IFS(F21="SERV",I21*(1+$L$5/100),F21="SERV DIF",I21*(1+$L$6/100),F21="FORN",I21*(1+$L$7/100)),2) -> 0.92 | K21: =TRUNC(H21*I21,2) -> 33440 | L21: =TRUNC(H21*J21,2) -> 40480
A22: 14.5 | B22: 3.2 | C22: 95426 | D22: SINAPI | E22: TRANSPORTE COM CAMINHÃO BASCULANTE, EM VIA DE REVESTIMENTO PRIMÁRIO | F22: SERV | G22: M3XKM | H22: 13000.00085 | I22: =VLOOKUP(A22,CPU!$A$1:$N$4640,9,0) -> 1.66 | J22: =TRUNC(_xlfn.IFS(F22="SERV",I22*(1+$L$5/100),F22="SERV DIF",I22*(1+$L$6/100),F22="FORN",I22*(1+$L$7/100)),2) -> 2.01 | K22: 21580 | L22: 26130
A23: E | B23: 4 | E23: OBRAS COMPLEMENTARES | K23: =SUM(K24:K29) -> 257086.92 | L23: =SUM(L24:L29) -> 311524.67
A24: 15 | B24: 4.1 | C24: 94287a | D24: SINAPI | E24: EXECUÇÃO DE SARJETA DE CONCRETO USINADO, MOLDADA IN LOCO EM TRECHO RETO, 30 CM BASE X 5 CM ALTURA | F24: SERV | G24: M | H24: 4000 | I24: =VLOOKUP(A24,CPU!$A$1:$N$4640,9,0) -> 22.45 | J24: =TRUNC(_xlfn.IFS(F24="SERV",I24*(1+$L$5/100),F24="SERV DIF",I24*(1+$L$6/100),F24="FORN",I24*(1+$L$7/100)),2) -> 27.21 | K24: =TRUNC(H24*I24,2) -> 89800 | L24: =TRUNC(H24*J24,2) -> 108840
A25: 16 | B25: 4.2 | C25: CPU.4 | D25: CODEVASF | E25: FORNECIMENTO E INSTALAÇÃO DE PLACA DE SINALIZAÇÃO VIÁRIA - REGULAMENTAÇÃO (FAIXA DE PEDESTRE E OUTROS) - CONFORME PROJETO | F25: SERV | G25: UNID | H25: 45 | I25: =VLOOKUP(A25,CPU!$A$1:$N$4640,9,0) -> 484.7 | J25: =TRUNC(_xlfn.IFS(F25="SERV",I25*(1+$L$5/100),F25="SERV DIF",I25*(1+$L$6/100),F25="FORN",I25*(1+$L$7/100)),2) -> 587.55 | K25: 21811.5 | L25: 26439.75
A26: 17 | B26: 4.3 | C26: CPU.5 | D26: CODEVASF | E26: FORNECIMENTO E INSTALAÇÃO DE PLACA DE SINALIZAÇÃO VIÁRIA - REGULAMENTAÇÃO (PARE) | F26: SERV | G26: UNID | H26: 35 | I26: =VLOOKUP(A26,CPU!$A$1:$N$4640,9,0) -> 478.54 | J26: =TRUNC(_xlfn.IFS(F26="SERV",I26*(1+$L$5/100),F26="SERV DIF",I26*(1+$L$6/100),F26="FORN",I26*(1+$L$7/100)),2) -> 580.08 | K26: 16748.9 | L26: 20302.8
A27: 18 | B27: 4.4 | C27: 102512 | D27: SINAPI | E27: PINTURA DE EIXO VIÁRIO SOBRE ASFALTO COM TINTA RETRORREFLETIVA A BASE DE RESINA ACRÍLICA COM MICROESFERAS DE VIDRO, APLICAÇÃO MECÂNICA COM DEMARCADORA AUTOPROPELIDA - ESPESSURA DE 0,10 MM | F27: SERV | G27: M | H27: 12300 | I27: =VLOOKUP(A27,CPU!$A$1:$N$4640,9,0) -> 6.4 | J27: =TRUNC(_xlfn.IFS(F27="SERV",I27*(1+$L$5/100),F27="SERV DIF",I27*(1+$L$6/100),F27="FORN",I27*(1+$L$7/100)),2) -> 7.75 | K27: 78720 | L27: 95325
A28: 19 | B28: 4.5 | C28: 102509 | D28: SINAPI | E28: PINTURA DE FAIXA DE PEDESTRE OU ZEBRADA TINTA RETRORREFLETIVA A BASE DE RESINA ACRÍLICA COM MICROESFERAS DE VIDRO, E = 30 CM, APLICAÇÃO MANUAL | F28: SERV | G28: M2 | H28: 1200 | I28: =VLOOKUP(A28,CPU!$A$1:$N$4640,9,0) -> 32.99 | J28: =TRUNC(_xlfn.IFS(F28="SERV",I28*(1+$L$5/100),F28="SERV DIF",I28*(1+$L$6/100),F28="FORN",I28*(1+$L$7/100)),2) -> 39.99 | K28: 39588 | L28: 47988
A29: 20 | B29: 4.6 | C29: CPU.6 | D29: CODEVASF | E29: FORNECIMENTO E INSTALAÇÃO DE PLACA DE AÇO PARA IDENTIFICACAO DE RUA, *45 CM X 20* CM, INCLUSIVE SUPORTE EM TUBO DE AÇO GALVANIZADO (02 PLACAS POR SUPORTE) | F29: SERV | G29: UN. | H29: 28 | I29: =VLOOKUP(A29,CPU!$A$1:$N$4640,9,0) -> 372.09 | J29: =TRUNC(_xlfn.IFS(F29="SERV",I29*(1+$L$5/100),F29="SERV DIF",I29*(1+$L$6/100),F29="FORN",I29*(1+$L$7/100)),2) -> 451.04 | K29: 10418.52 | L29: 12629.12
A30: F | B30: 5 | E30: TRANSPORTE DE MATERIAL ASFÁLTICO (BDI DIFERENCIADO) | K30: =SUM(K31:K33) -> 106069.99 | L30: =SUM(L31:L33) -> 121709.99
A31: 21 | B31: 5.1 | C31: 102331 | D31: SINAPI | E31: TRANSPORTE COM CAMINHÃO TANQUE DE TRANSPORTE DE MATERIAL ASFÁLTICO DE 30000 L, EM VIA URBANA PREDOMINANTEMENTE PAVIMENTADA | F31: SERV DIF | G31: TXKM | H31: 138999.996 | I31: =VLOOKUP(A31,CPU!$A$1:$N$4640,9,0) -> 0.54 | J31: =TRUNC(_xlfn.IFS(F31="SERV",I31*(1+$L$5/100),F31="SERV DIF",I31*(1+$L$6/100),F31="FORN",I31*(1+$L$7/100)),2) -> 0.62 | K31: =TRUNC(H31*I31,2) -> 75059.99 | L31: =TRUNC(H31*J31,2) -> 86179.99
A32: 22 | B32: 5.2 | C32: 95880 | D32: SINAPI | E32: TRANSPORTE COM CAMINHÃO BASCULANTE EM VIA URBANA PAVIMENTADA - MASSA ASFÁLTICA (PMF) | F32: SERV DIF | G32: TXKM | H32: 6000 | I32: =VLOOKUP(A32,CPU!$A$1:$N$4640,9,0) -> 0.99 | J32: =TRUNC(_xlfn.IFS(F32="SERV",I32*(1+$L$5/100),F32="SERV DIF",I32*(1+$L$6/100),F32="FORN",I32*(1+$L$7/100)),2) -> 1.13 | K32: 5940 | L32: 6780
A33: 23 | B33: 5.3 | C33: 95429 | D33: SINAPI | E33: TRANSPORTE COM CAMINHÃO BASCULANTE, EM VIA DE REVESTIMENTO PRIMÁRIO - MASSA ASFÁLTICA (PMF) | F33: SERV DIF | G33: TXKM | H33: 23000 | I33: =VLOOKUP(A33,CPU!$A$1:$N$4640,9,0) -> 1.09 | J33: =TRUNC(_xlfn.IFS(F33="SERV",I33*(1+$L$5/100),F33="SERV DIF",I33*(1+$L$6/100),F33="FORN",I33*(1+$L$7/100)),2) -> 1.25 | K33: 25070 | L33: 28750
A34: G | B34: 6 | E34: FORNECIMENTOS - MATERIAL ASFÁLTICO (BDI DIFERENCIADO) | K34: =SUM(K35:K36) -> 581077 | L34: =SUM(L35:L36) -> 668237.27
A35: 24 | B35: 6.1 | C35: CPU.7 | D35: ANP | E35: AQUISIÇÃO DE EMULSAO ASFALTICA CATIONICA RR-1C - EXCLUSIVE TRANSPORTE | F35: FORN | G35: T | H35: 8 | I35: =VLOOKUP(A35,CPU!$A$1:$N$4640,9,0) -> 3253.92 | J35: =TRUNC(_xlfn.IFS(F35="SERV",I35*(1+$L$5/100),F35="SERV DIF",I35*(1+$L$6/100),F35="FORN",I35*(1+$L$7/100)),2) -> 3742 | K35: =TRUNC(H35*I35,2) -> 26031.36 | L35: =TRUNC(H35*J35,2) -> 29936
A36: 25 | B36: 6.2 | C36: CPU.8 | D36: ANP | E36: AQUISIÇÃO DE EMULSAO ASFALTICA CATIONICA RL-1C - EXCLUSIVE TRANSPORTE | F36: FORN | G36: T | H36: 161.998 | I36: =VLOOKUP(A36,CPU!$A$1:$N$4640,9,0) -> 3426.25 | J36: =TRUNC(_xlfn.IFS(F36="SERV",I36*(1+$L$5/100),F36="SERV DIF",I36*(1+$L$6/100),F36="FORN",I36*(1+$L$7/100)),2) -> 3940.18 | K36: =TRUNC(H36*I36,2) -> 555045.64 | L36: 638301.27
E37: TOTAL GERAL | K37: =SUM(K10,K15,K20,K23,K30,K34) -> 1525516.34 | L37: =SUM(L10,L15,L20,L23,L30,L34) -> 1805925

Sheet CPU
A1: 1 | B1: CODEVASF | E1: COMPOSIÇÃO DE PREÇO UNITÁRIO | I1: =H11 -> 7227.84 | J1: =H13 -> 8761.58 | K1: BDI CALCULADO: | M1: =ORÇAMENTO!L5/100 -> 0.2122
B2: OBRA: | C2: =ORÇAMENTO!C5 -> PAVIMENTAÇÃO ASFÁLTICA EM PMF (PRE-MIST. A FRIO) - RECAPEAMENTO - VIAS DIVERSAS - RUBIM-MG | G2: DATA: | H2: =ORÇAMENTO!C6 -> NOVEMBRO DE 2024 | K2: BDI DIFERENCIADO: | M2: ='BDI FORN'!D31/100 -> 0.15
B3: SERVIÇO: | C3: =VLOOKUP(A1,ORÇAMENTO!A11:L24,5) -> MOBILIZAÇÃO E DESMOBILIZAÇÃO | E3: REFERÊNCIA | F3: =VLOOKUP(A1,ORÇAMENTO!A$11:L$37,3,0) -> CPU.1 | G3: UNIDADE: | H3: =VLOOKUP(A1,ORÇAMENTO!A11:L24,7,0) -> GL
B5: TIPO ITEM | C5: CODIGO ITEM | D5: DESCRIÇÃO ITEM | E5: UNIDADE ITEM | F5: COEFICIENTE | G5: PRECO UNITARIO | H5: CUSTO TOTAL
B6: COMPOSICAO | C6: 5824 | D6: CAMINHÃO TOCO, PBT 16.000 KG, CARGA ÚTIL MÁX. 10.685 KG, DIST. ENTRE EIXOS 4,8 M, POTÊNCIA 189 CV, INCLUSIVE CARROCERIA FIXA ABERTA DE MADEIRA P/ TRANSPORTE GERAL DE CARGA SECA, DIMEN. APROX. 2,5 X 7,00 X 0,50 M | E6: CHP DIURNO. | F6: 6 | G6: 213.06 | H6: =ROUNDDOWN(F6*G6,2) -> 1278.36
B7: COMPOSICAO | C7: 5826 | D7: CAMINHÃO TOCO, PBT 16.000 KG, CARGA ÚTIL MÁX. 10.685 KG, DIST. ENTRE EIXOS 4,8 M, POTÊNCIA 189 CV, INCLUSIVE CARROCERIA FIXA ABERTA DE MADEIRA P/ TRANSPORTE GERAL DE CARGA SECA, DIMEN. APROX. 2,5 X 7,00 X 0,50 M | E7: CHI DIURNO. | F7: 4 | G7: 62.14 | H7: =ROUNDDOWN(F7*G7,2) -> 248.56
B8: COMPOSICAO | C8: 5914640 | D8: TRANSPORTE COM CAVALO MECÂNICO COM SEMIRREBOQUE COM CAPACIDADE DE 30 T - RODOVIA PAVIMENTADA | E8: T.KM | F8: 3176 | G8: 0.58 | H8: =ROUNDDOWN(F8*G8,2) -> 1842.08
B9: COMPOSIÇÃO | C9: 88316 | D9: SERVENTE COM ENCARGOS COMPLEMENTARES | E9: H | F9: 12 | G9: 20.41 | H9: =ROUNDDOWN(F9*G9,2) -> 244.92
B10: PRODUÇÃO DA EQUIPE | E10: 0.5 | F10: CUSTO | H10: =SUM(H6:H9) -> 3613.92
B11: TOTAL | H11: =H10/E10 -> 7227.84 | I11: Ok
B12: BDI % | H12: =1+$M$1 -> 1.2122
B13: TOTAL DO SERVIÇO - R$ | H13: =TRUNC(H11*H12,2) -> 8761.58
A15: =A1+1 -> 2 | B15: CODEVASF | E15: COMPOSIÇÃO DE PREÇO UNITÁRIO | I15: =H29 -> 76426.8 | J15: =H31 -> 92644.56
B16: OBRA: | C16: =$C$2 -> PAVIMENTAÇÃO ASFÁLTICA EM PMF (PRE-MIST. A FRIO) - RECAPEAMENTO - VIAS DIVERSAS - RUBIM-MG | G16: DATA: | H16: =$H$2 -> NOVEMBRO DE 2024
B17: SERVIÇO: | C17: =VLOOKUP(A15,ORÇAMENTO!$A$11:$L$24,5) -> ADMINISTRAÇÃO LOCAL | E17: REFERÊNCIA | F17: =VLOOKUP(A15,ORÇAMENTO!A$11:L$37,3,0) -> CPU.2 | G17: UNIDADE: | H17: =VLOOKUP(A15,ORÇAMENTO!$A$11:$L$24,7,0) -> GL
B19: TIPO ITEM | C19: CODIGO ITEM | D19: DESCRIÇÃO ITEM | E19: UNIDADE ITEM | F19: COEFICIENTE | G19: PRECO UNITARIO | H19: CUSTO TOTAL
B20: INSUMO | C20: 14250 | D20: ENERGIA ELÉTRICA | E20: kwh | F20: 60 | G20: 1.06 | H20: =ROUNDDOWN(F20*G20,2) -> 63.6
B21: INSUMO | C21: 44480 | D21: TARIFA "A" - ÁGUA/ESGOTO | E21: m³ | F21: 6 | G21: 20.05 | H21: 120.3
B22: COTAÇÃO | C22: MERC. | D22: TELEFONE (PLANO CONTROLE) | E22: UNID | F22: 2 | G22: 59.9 | H22: 119.8
B23: INSUMO | C23: ED-50155 SEINFRA | D23: BANHEIRO QUÍMICO 110 X 120 X 230 CM COM MANUTENÇÃO | E23: MÊS | F23: 1 | G23: 820 | H23: 820
B24: COMPOSICAO | C24: 90777 | D24: Engenheiro Civil Júnior com encargos complementares | E24: H | F24: 25 | G24: 118.01 | H24: 2950.25
B25: COMPOSICAO | C25: 90776 | D25: Encarregado Geral com encargos complementares | E25: H | F25: 110 | G25: 55.15 | H25: 6066.5
B26: COMPOSICAO | C26: 88321 | D26: Tecnico de Laboratório com encargos complementares | E26: H | F26: 55 | G26: 38.07 | H26: 2093.85
B27: COMPOSICAO | C27: 90772 | D27: Auxiliar de escritório com encargos complementares | E27: H | F27: 25 | G27: 20.14 | H27: 503.5
B28: PRODUÇÃO DA EQUIPE | E28: =1/6 -> 0.1666666667 | F28: CUSTO | H28: =SUM(H20:H27) -> 12737.8
B29: TOTAL | H29: =H28/E28 -> 76426.8 | I29: Ok
B30: BDI % | H30: =1+$M$1 -> 1.2122
B31: TOTAL DO SERVIÇO - R$ | H31: =TRUNC(H29*H30,2) -> 92644.56
A33: =A15+1 -> 3 | B33: CODEVASF | E33: COMPOSIÇÃO DE PREÇO UNITÁRIO | I33: =H43 -> 14567.66 | J33: =H45 -> 17658.91
B34: OBRA: | C34: =$C$2 -> PAVIMENTAÇÃO ASFÁLTICA EM PMF (PRE-MIST. A FRIO) - RECAPEAMENTO - VIAS DIVERSAS - RUBIM-MG | G34: DATA: | H34: =$H$2 -> NOVEMBRO DE 2024
B35: SERVIÇO: | C35: =VLOOKUP(A33,ORÇAMENTO!$A$11:$L$24,5) -> CANTEIRO DE OBRAS | E35: REFERÊNCIA | F35: =VLOOKUP(A33,ORÇAMENTO!A$11:L$37,3,0) -> CPU.3 | G35: UNIDADE: | H35: =VLOOKUP(A33,ORÇAMENTO!$A$11:$L$24,7,0) -> GL
B37: TIPO ITEM | C37: CODIGO ITEM | D37: DESCRIÇÃO ITEM | E37: UNIDADE ITEM | F37: COEFICIENTE | G37: PRECO UNITARIO | H37: CUSTO TOTAL
B38: INSUMO | C38: 10775 | D38: ALUGUEL DE IMÓVEL OU CONTEINER QUE ATENDA AOS REQUISITOS MÍNIMOS PARA INSTALAÇÃO DO CANTEIRO DE OBRAS | E38: MÊS | F38: 6 | G38: 920 | H38: =ROUNDDOWN(F38*G38,2) -> 5520
B39: INSUMO | C39: 10779 | D39: LOCACAO DE CONTAINER 2,30 X 4,30 M, ALT. 2,50 M, P/ SANITARIO, C/ 5 BACIAS, 1 LAVATORIO E 4 MICTORIOS | E39: MÊS | F39: 6 | G39: 1062.5 | H39: =ROUNDDOWN(F39*G39,2) -> 6375
B40: INSUMO | C40: 37525 | D40: TELA PLASTICA TECIDA LISTRADA BRANCA E LARANJA, TIPO GUARDA CORPO, EM POLIETILENO MONOFILADO, ROLO 1,20 X 50 M (L X C) | E40: M | F40: 100 | G40: 2.72662624 | H40: =ROUNDDOWN(F40*G40,2) -> 272.66
B41: COMPOSIÇÃO | C41: - | D41: INSTALAÇÃO DE USINA DE ASFALTO A FRIO, CAPACIDADE DE 40 A 60 TON., POT. 30CV, INCLUSIVE RAMPAS, ACESSOS, CONTENÇÕES, ETC. | E41: VB | F41: 1 | G41: 2400 | H41: =ROUNDDOWN(F41*G41,2) -> 2400
B42: PRODUÇÃO DA EQUIPE | E42: 1 | F42: CUSTO | H42: =SUM(H38:H41) -> 14567.66
B43: TOTAL | H43: =H42/E42 -> 14567.66 | I43: Ok
B44: BDI % | H44: =1+$M$1 -> 1.2122
B45: TOTAL DO SERVIÇO - R$ | H45: =TRUNC(H43*H44,2) -> 17658.91
A47: =A33+1 -> 4 | B47: CODEVASF | E47: COMPOSIÇÃO DE PREÇO UNITÁRIO | I47: =H60 -> 504.77 | J47: =H62 -> 611.88
B48: OBRA: | C48: =$C$2 -> PAVIMENTAÇÃO ASFÁLTICA EM PMF (PRE-MIST. A FRIO) - RECAPEAMENTO - VIAS DIVERSAS - RUBIM-MG | G48: DATA: | H48: =$H$2 -> NOVEMBRO DE 2024
B49: SERVIÇO: | C49: =VLOOKUP(A47,ORÇAMENTO!$A$11:$L$24,5) -> PLACA DE OBRA EM CHAPA DE AÇO GALVANIZADO | E49: REFERÊNCIA | F49: =VLOOKUP(A47,ORÇAMENTO!A$11:L$37,3,0) -> 74209/001 | G49: UNIDADE: | H49: =VLOOKUP(A47,ORÇAMENTO!$A$11:$L$24,7,0) -> M2
B51: TIPO ITEM | C51: CODIGO ITEM | D51: DESCRIÇÃO ITEM | E51: UNIDADE ITEM | F51: COEFICIENTE | G51: PRECO UNITARIO | H51: CUSTO TOTAL
B52: INSUMO | C52: 4509 | D52: SARRAFO *2,5 X 10* CM EM PINUS, MISTA OU EQUIVALENTE DA REGIAO - BRUTA | E52: M | F52: 3,2083000 | G52: 4,02 | H52: =ROUNDDOWN(F52*G52,2) -> 12.89
B53: INSUMO | C53: 4813 | D53: PLACA DE OBRA (PARA CONSTRUCAO CIVIL) EM CHAPA GALVANIZADA *N. 22*, ADESIVADA, DE *2,4 X 1,2* M (SEM POSTES PARA FIXACAO) | E53: M2 | F53: 1,0000000 | G53: 429,50 | H53: 429.5
B54: INSUMO | C54: 5065 | D54: PREGO DE ACO POLIDO COM CABECA 10 X 10 | E54: KG | F54: 0,0113000 | G54: 35,12 | H54: 0.39
B55: INSUMO | C55: 5069 | D55: PREGO DE ACO POLIDO COM CABECA 17 X 27 | E55: KG | F55: 0,0132000 | G55: 18,82 | H55: 0.24
B56: COMPOSICAO | C56: 88262 | D56: CARPINTEIRO DE FORMAS COM ENCARGOS COMPLEMENTARES | E56: H | F56: 0,3729000 | G56: 27,77 | H56: 10.35
B57: COMPOSICAO | C57: 88316 | D57: SERVENTE COM ENCARGOS COMPLEMENTARES | E57: H | F57: 1,1186000 | G57: 20,41 | H57: 22.83
B58: INSUMO | C58: 4115 | D58: MADEIRA ROLICA TRATADA, D = 12 A 15 CM, H = 3,00 M, EM EUCALIPTO OU EQUIVALENTE | E58: M | F58: =6/4.5 -> 1.333333333 | G58: 21.43 | H58: 28.57
B59: PRODUÇÃO DA EQUIPE | E59: 1 | F59: CUSTO | H59: =SUM(H52:H58) -> 504.77
B60: TOTAL | H60: =H59/E59 -> 504.77 | I60: Ok
B61: BDI % | H61: =1+$M$1 -> 1.2122
B62: TOTAL DO SERVIÇO - R$ | H62: =TRUNC(H60*H61,2) -> 611.88
A64: 10 | B64: CODEVASF | E64: COMPOSIÇÃO DE PREÇO UNITÁRIO | I64: =H75 -> 349.76 | J64: =H77 -> 423.97
B65: OBRA: | C65: =$C$2 -> PAVIMENTAÇÃO ASFÁLTICA EM PMF (PRE-MIST. A FRIO) - RECAPEAMENTO - VIAS DIVERSAS - RUBIM-MG | G65: DATA: | H65: =$H$2 -> NOVEMBRO DE 2024
B66: SERVIÇO: | C66: =VLOOKUP(A64,ORÇAMENTO!$A$11:$L$24,5) -> RECOMPOSIÇÃO DE BASE E OU SUB-BASE PARA REMENDO PROFUNDO DE BICA CORRIDA - INCLUSO RETIRADA E COLOCAÇÃO DO MATERIAL | E66: REFERÊNCIA | F66: =VLOOKUP(A64,ORÇAMENTO!A$11:L$37,3,0) -> 101835 | G66: UNIDADE: | H66: =VLOOKUP(A64,ORÇAMENTO!$A$11:$L$24,7,0) -> M3
B68: TIPO ITEM | C68: CODIGO ITEM | D68: DESCRIÇÃO ITEM | E68: UNIDADE ITEM | F68: COEFICIENTE | G68: PRECO UNITARIO | H68: CUSTO TOTAL
B69: COMPOSICAO | C69: 88316 | D69: SERVENTE COM ENCARGOS COMPLEMENTARES | E69: H | F69: 4,2001000 | G69: 20,41 | H69: =ROUNDDOWN(F69*G69,2) -> 85.72
B70: COMPOSICAO | C70: 91533 | D70: COMPACTADOR DE SOLOS DE PERCUSSÃO (SOQUETE) COM MOTOR A GASOLINA 4 TEMPOS, POTÊNCIA 4CV | E70: CHP | F70: 0,2050000 | G70: 41,95 | H70: 8.59
B71: COMPOSICAO | C71: 91534 | D71: COMPACTADOR DE SOLOS DE PERCUSSÃO (SOQUETE) COM MOTOR A GASOLINA 4 TEMPOS, POTÊNCIA 4CV | E71: CHI | F71: 0,8450000 | G71: 34,85 | H71: 29.44
B72: COMPOSICAO | C72: 4748 | D72: PEDRA BRITADA OU BICA CORRIDA, NAO CLASSIFICADA (POSTO PEDREIRA/FORNECEDOR, SEM FRETE) | E72: M3 | F72: 1,0000000 | G72: 201,60 | H72: 201.6
B73: INSUMO | C73: ANP | D73: EMULSÃO ASFÁLTICA PARA IMPRIMAÇÃO (EAI) | E73: T | F73: =1.3/0.15/1000 -> 0.008666666667 | G73: =2.31001*1.2195122*1000 -> 2817.085377 | H73: 24.41
B74: PRODUÇÃO DA EQUIPE | E74: 1 | F74: CUSTO | H74: =SUM(H69:H73) -> 349.76
B75: TOTAL | H75: =H74/E74 -> 349.76 | I75: Ok
B76: BDI % | H76: =1+$M$1 -> 1.2122
B77: TOTAL DO SERVIÇO - R$ | H77: =TRUNC(H75*H76,2) -> 423.97
A79: 11 | B79: CODEVASF | E79: COMPOSIÇÃO DE PREÇO UNITÁRIO | I79: =H93 -> 1.01 | J79: =H95 -> 1.22
B80: OBRA: | C80: =$C$2 -> PAVIMENTAÇÃO ASFÁLTICA EM PMF (PRE-MIST. A FRIO) - RECAPEAMENTO - VIAS DIVERSAS - RUBIM-MG | G80: DATA: | H80: =$H$2 -> NOVEMBRO DE 2024
B81: SERVIÇO: | C81: =VLOOKUP(A79,ORÇAMENTO!$A$11:$L$24,5) -> PINTURA DE LIGAÇÃO COM EMULSÃO ASFÁLTICA RR-1C | E81: REFERÊNCIA | F81: =VLOOKUP(A79,ORÇAMENTO!A$11:L$37,3,0) -> 96402 | G81: UNIDADE: | H81: =VLOOKUP(A79,ORÇAMENTO!$A$11:$L$24,7,0) -> M2
B83: TIPO ITEM | C83: CODIGO ITEM | D83: DESCRIÇÃO ITEM | E83: UNIDADE ITEM | F83: COEFICIENTE | G83: PRECO UNITARIO | H83: CUSTO TOTAL
B84: COMPOSICAO | C84: 5839 | D84: VASSOURA MECÂNICA REBOCÁVEL COM ESCOVA CILÍNDRICA, LARGURA ÚTIL DE VARRIMENTO DE 2,44 M | E84: CHP | F84: 0,0020000 | G84: 9.31 | H84: =ROUNDDOWN(F84*G84,2) -> 0.01
B85: COMPOSICAO | C85: 5841 | D85: VASSOURA MECÂNICA REBOCÁVEL COM ESCOVA CILÍNDRICA, LARGURA ÚTIL DE VARRIMENTO DE 2,44 M | E85: CHI | F85: 0,0040000 | G85: 4.68 | H85: 0.01
B86: INSUMO | C86: 41903 | D86: EMULSAO ASFALTICA CATIONICA RR-1C PARA USO EM PAVIMENTACAO ASFALTICA (FORNECIMENTO COM BDI DIFERENCIADO) | E86: KG | F86: 0,4500000 | H86: 0
B87: COMPOSICAO | C87: 83362 | D87: ESPARGIDOR DE ASFALTO PRESSURIZADO, TANQUE 6 M3 COM ISOLAÇÃO TÉRMICA, AQUECIDO COM 2 MAÇARICOS, COM BARRA ESPARGIDORA 3,60 M, MONTADO SOBRE CAMINHÃO TOCO, PBT 14.300 KG, POTÊNCIA 185 CV | E87: CHP | F87: 0,0004000 | G87: 269.96 | H87: 0.1
B88: COMPOSICAO | C88: 88316 | D88: SERVENTE COM ENCARGOS COMPLEMENTARES | E88: H | F88: 0,0055000 | G88: 20.41 | H88: 0.11
B89: COMPOSICAO | C89: 89035 | D89: TRATOR DE PNEUS, POTÊNCIA 85 CV, TRAÇÃO 4X4, PESO COM LASTRO DE 4.675 KG | E89: CHP | F89: 0,0017000 | G89: 138.64 | H89: 0.23
B90: COMPOSICAO | C90: 89036 | D90: TRATOR DE PNEUS, POTÊNCIA 85 CV, TRAÇÃO 4X4, PESO COM LASTRO DE 4.675 KG | E90: CHI | F90: 0,0038000 | G90: 55.04 | H90: 0.2
B91: COMPOSICAO | C91: 91486 | D91: ESPARGIDOR DE ASFALTO PRESSURIZADO, TANQUE 6 M3 COM ISOLAÇÃO TÉRMICA, AQUECIDO COM 2 MAÇARICOS, COM BARRA ESPARGIDORA 3,60 M, MONTADO SOBRE CAMINHÃO TOCO, PBT 14.300 KG, POTÊNCIA 185 CV | E91: CHI | F91: 0,0051000 | G91: 69.43 | H91: 0.35
B92: PRODUÇÃO DA EQUIPE | E92: 1 | F92: CUSTO | H92: =SUM(H84:H91) -> 1.01
B93: TOTAL | H93: =H92/E92 -> 1.01 | I93: Ok
B94: BDI % | H94: =1+$M$1 -> 1.2122
B95: TOTAL DO SERVIÇO - R$ | H95: =TRUNC(H93*H94,2) -> 1.22
A97: 11.5 | B97: CODEVASF | E97: COMPOSIÇÃO DE PREÇO UNITÁRIO | I97: =H106 -> 5.03 | J97: =H108 -> 6.09
B98: OBRA: | C98: =$C$2 -> PAVIMENTAÇÃO ASFÁLTICA EM PMF (PRE-MIST. A FRIO) - RECAPEAMENTO - VIAS DIVERSAS - RUBIM-MG | G98: DATA: | H98: =$H$2 -> NOVEMBRO DE 2024
B99: SERVIÇO: | C99: =VLOOKUP(A97,ORÇAMENTO!$A$11:$L$24,5) -> CARGA DE MISTURA ASFÁLTICA EM CAMINHÃO BASCULANTE | E99: REFERÊNCIA | F99: =VLOOKUP(A97,ORÇAMENTO!A$11:L$37,3,0) -> 101001 | G99: UNIDADE: | H99: =VLOOKUP(A97,ORÇAMENTO!$A$11:$L$24,7,0) -> T
B101: TIPO ITEM | C101: CODIGO ITEM | D101: DESCRIÇÃO ITEM | E101: UNIDADE ITEM | F101: COEFICIENTE | G101: PRECO UNITARIO | H101: CUSTO TOTAL
B102: COMPOSICAO | C102: 89883 | D102: CAMINHÃO BASCULANTE 18 M3, COM CAVALO MECÂNICO DE CAPACIDADE MÁXIMA DE TRAÇÃO COMBINADO DE 45000 KG, POTÊNCIA 330 CV, INCLUSIVE SEMIREBOQUE COM CAÇAMBA METÁLICA | E102: CHP | F102: 0.01127 | G102: 366,36 | H102: =ROUNDDOWN(F102*G102,2) -> 4.12
B103: COMPOSICAO | C103: 89884 | D103: CAMINHÃO BASCULANTE 18 M3, COM CAVALO MECÂNICO DE CAPACIDADE MÁXIMA DE TRAÇÃO COMBINADO DE 45000 KG, POTÊNCIA 330 CV, INCLUSIVE SEMIREBOQUE COM CAÇAMBA METÁLICA | E103: CHI | F103: 0,0096000 | G103: 95,31 | H103: 0.91
H104: 0
B105: PRODUÇÃO DA EQUIPE | E105: 1 | F105: CUSTO | H105: =SUM(H102:H104) -> 5.03
B106: TOTAL | H106: =H105/E105 -> 5.03 | I106: Ok
B107: BDI % | H107: =1+$M$1 -> 1.2122
B108: TOTAL DO SERVIÇO - R$ | H108: =TRUNC(H106*H107,2) -> 6.09
A110: 12 | B110: CODEVASF | E110: COMPOSIÇÃO DE PREÇO UNITÁRIO | I110: =H128 -> 447.99 | J110: =H130 -> 543.05
B111: OBRA: | C111: =$C$2 -> PAVIMENTAÇÃO ASFÁLTICA EM PMF (PRE-MIST. A FRIO) - RECAPEAMENTO - VIAS DIVERSAS - RUBIM-MG | G111: DATA: | H111: =$H$2 -> NOVEMBRO DE 2024
B112: SERVIÇO: | C112: =VLOOKUP(A110,ORÇAMENTO!$A$11:$L$24,5) -> EXECUÇÃO DE PAVIMENTO COM APLICAÇÃO DE PRÉ-MISTURADO A FRIO, CAMADA DE ROLAMENTO - EXCLUSIVE TRANSPORTE | E112: REFERÊNCIA | F112: =VLOOKUP(A110,ORÇAMENTO!A$11:L$37,3,0) -> 104371 | G112: UNIDADE: | H112: =VLOOKUP(A110,ORÇAMENTO!$A$11:$L$24,7,0) -> M3
B114: TIPO ITEM | C114: CODIGO ITEM | D114: DESCRIÇÃO ITEM | E114: UNIDADE ITEM | F114: COEFICIENTE | G114: PRECO UNITARIO | H114: CUSTO TOTAL
B115: COMPOSICAO | C115: 5835 | D115: VIBROACABADORA DE ASFALTO SOBRE ESTEIRAS, LARGURA DE PAVIMENTAÇÃO 1,90 M A 5,30 M, POTÊNCIA 105 HP CAPACIDADE 450 T/H | E115: CHP | F115: 0,0280000 | G115: 376.54 | H115: =ROUNDDOWN(F115*G115,2) -> 10.54
B116: COMPOSICAO | C116: 5837 | D116: VIBROACABADORA DE ASFALTO SOBRE ESTEIRAS, LARGURA DE PAVIMENTAÇÃO 1,90 M A 5,30 M, POTÊNCIA 105 HP CAPACIDADE 450 T/H | E116: CHI | F116: 0,0580000 | G116: 148.76 | H116: 8.62
B117: COMPOSICAO | C117: 88314 | D117: RASTELEIRO COM ENCARGOS COMPLEMENTARES | E117: H | F117: 0.6686 | G117: 20.34 | H117: 13.59
B118: COMPOSICAO | C118: 91386 | D118: CAMINHÃO BASCULANTE 10 M3, TRUCADO CABINE SIMPLES, PESO BRUTO TOTAL 23.000 KG, CARGA ÚTIL MÁXIMA 15.935 KG, DISTÂNCIA ENTRE EIXOS 4,80 M, POTÊNCIA 230 CV INCLUSIVE CAÇAMBA METÁLICA | E118: CHP | F118: 0,0280000 | G118: 265.14 | H118: 7.42
B119: COMPOSICAO | C119: 95631 | D119: ROLO COMPACTADOR VIBRATORIO TANDEM, ACO LISO, POTENCIA 125 HP, PESO SEM/COM LASTRO 10,20/11,65 T, LARGURA DE TRABALHO 1,73 M | E119: CHP | F119: 0,0460000 | G119: 231.39 | H119: 10.64
B120: COMPOSICAO | C120: 95632 | D120: ROLO COMPACTADOR VIBRATORIO TANDEM, ACO LISO, POTENCIA 125 HP, PESO SEM/COM LASTRO 10,20/11,65 T, LARGURA DE TRABALHO 1,73 M | E120: CHI | F120: 0,0400000 | G120: 84.55 | H120: 3.38
B121: COMPOSICAO | C121: 96155 | D121: TRATOR DE PNEUS COM POTÊNCIA DE 85 CV, TRAÇÃO 4X4, COM VASSOURA MECÂNICA ACOPLADA | E121: CHI | F121: 0,0520000 | G121: 59.51 | H121: 3.09
B122: COMPOSICAO | C122: 96157 | D122: TRATOR DE PNEUS COM POTÊNCIA DE 85 CV, TRAÇÃO 4X4, COM VASSOURA MECÂNICA ACOPLADA | E122: CHP | F122: 0,0340000 | G122: 146.97 | H122: 4.99
B123: COMPOSICAO | C123: 96463 | D123: ROLO COMPACTADOR DE PNEUS, ESTATICO, PRESSAO VARIAVEL, POTENCIA 110 HP, PESO SEM/COM LASTRO 10,8/27 T, LARGURA DE ROLAGEM 2,30 M | E123: CHP | F123: 0,0260000 | G123: 219.82 | H123: 5.71
B124: COMPOSICAO | C124: 96464 | D124: ROLO COMPACTADOR DE PNEUS, ESTATICO, PRESSAO VARIAVEL, POTENCIA 110 HP, PESO SEM/COM LASTRO 10,8/27 T, LARGURA DE ROLAGEM 2,30 M | E124: CHI | F124: 0,0600000 | G124: 91.18 | H124: 5.47
B125: COMPOSICAO | C125: 104374 | D125: USINAGEM DE PRÉ MISTURADO A FRIO, PARA CAMADA DE ROLAMENTO, PADRÃO DNIT FAIXA C | E125: T | F125: 2,4480000 | G125: =H153 -> 153 | H125: 374.54
H126: 0
B127: PRODUÇÃO DA EQUIPE | E127: 1 | F127: CUSTO | H127: =SUM(H115:H126) -> 447.99
B128: TOTAL | H128: =H127/E127 -> 447.99 | I128: Ok
B129: BDI % | H129: =1+$M$1 -> 1.2122
B130: TOTAL DO SERVIÇO - R$ | H130: =TRUNC(H128*H129,2) -> 543.05
B132: CODEVASF | E132: COMPOSIÇÃO DE PREÇO UNITÁRIO - AUXILIAR
B133: OBRA: | C133: =$C$2 -> PAVIMENTAÇÃO ASFÁLTICA EM PMF (PRE-MIST. A FRIO) - RECAPEAMENTO - VIAS DIVERSAS - RUBIM-MG | G133: DATA: | H133: =$H$2 -> NOVEMBRO DE 2024
B134: SERVIÇO: | C134: =D125 -> USINAGEM DE PRÉ MISTURADO A FRIO, PARA CAMADA DE ROLAMENTO, PADRÃO DNIT FAIXA C | E134: REFERÊNCIA | F134: =C125 -> 104374 | G134: UNIDADE: | H134: =E125 -> T
B136: TIPO ITEM | C136: CODIGO ITEM | D136: DESCRIÇÃO ITEM | E136: UNIDADE ITEM | F136: COEFICIENTE | G136: PRECO UNITARIO | H136: CUSTO TOTAL
B137: INSUMO | C137: 370 | D137: AREIA MEDIA - POSTO JAZIDA/FORNECEDOR (RETIRADO NA JAZIDA, SEM TRANSPORTE) | E137: M3 | F137: 0,1600000 | G137: 130 | H137: =ROUNDDOWN(F137*G137,2) -> 20.8 | I137: v
B138: INSUMO | C138: 1106 | D138: CAL HIDRATADA CH-I PARA ARGAMASSAS | E138: KG | F138: 36,9275000 | G138: 1.14 | H138: 42.09 | I138: v
B139: INSUMO | C139: 4720 | D139: PEDRA BRITADA N. 0, OU PEDRISCO (4,8 A 9,5 MM) POSTO PEDREIRA/FORNECEDOR, SEM FRETE | E139: M3 | F139: 0,2410000 | G139: 147.43 | H139: 35.53 | I139: v
B140: INSUMO | C140: 4721 | D140: PEDRA BRITADA N. 1 (9,5 a 19 MM) POSTO PEDREIRA/FORNECEDOR, SEM FRETE | E140: M3 | F140: 0,1897000 | G140: 127.69 | H140: 24.22 | I140: v
B141: COMPOSICAO | C141: 5940 | D141: PÁ CARREGADEIRA SOBRE RODAS, POTÊNCIA LÍQUIDA 128 HP, CAPACIDADE DA CAÇAMBA 1,7 A 2,8 M3, PESO OPERACIONAL 11632 KG | E141: CHP | F141: 0,0048000 | G141: 204.01 | H141: 0.97 | I141: v
B142: COMPOSICAO | C142: 5942 | D142: PÁ CARREGADEIRA SOBRE RODAS, POTÊNCIA LÍQUIDA 128 HP, CAPACIDADE DA CAÇAMBA 1,7 A 2,8 M3, PESO OPERACIONAL 11632 KG | E142: CHI | F142: 0,0253000 | G142: 83.69 | H142: 2.11 | I142: v
B143: COMPOSICAO | C143: 7030 | D143: TANQUE DE ASFALTO ESTACIONÁRIO COM SERPENTINA, CAPACIDADE 30.000 L | E143: CHP | F143: 0,0603000 | G143: 261.37 | H143: 15.76 | I143: v
B144: INSUMO | C144: 41904 | D144: EMULSAO ASFALTICA CATIONICA RL-1C PARA USO EM PAVIMENTACAO ASFALTICA (FORNECIMENTO COM BDI DIFERENCIADO) | E144: T | F144: 0,0769000 | H144: 0 | I144: v | J144: =F144*2.448 -> 0.1882512
B145: COMPOSICAO | C145: 88316 | D145: SERVENTE COM ENCARGOS COMPLEMENTARES | E145: H | F145: 0,0603000 | G145: 20.41 | H145: 1.23
B146: COMPOSICAO | C146: 90776 | D146: ENCARREGADO GERAL COM ENCARGOS COMPLEMENTARES | E146: H | F146: 0,0301000 | G146: 55.15 | H146: 1.66 | I146: v
B147: COMPOSICAO | C147: 93421 | D147: GRUPO GERADOR REBOCÁVEL, POTÊNCIA 66 KVA, MOTOR A DIESEL | E147: CHP | F147: 0,0234000 | G147: 75.32 | H147: 1.76 | I147: v
B148: COMPOSICAO | C148: 93422 | D148: GRUPO GERADOR REBOCÁVEL, POTÊNCIA 66 KVA, MOTOR A DIESEL | E148: CHI | F148: 0,0068000 | G148: 6.07 | H148: 0.04 | I148: v
B149: COMPOSICAO | C149: 93439 | D149: USINA DE ASFALTO À FRIO, CAPACIDADE DE 40 A 60 TON/HORA, ELÉTRICA POTÊNCIA 30 CV | E149: CHP | F149: 0,0234000 | G149: 253.76 | H149: 5.93 | I149: v
B150: COMPOSICAO | C150: 93440 | D150: USINA DE ASFALTO À FRIO, CAPACIDADE DE 40 A 60 TON/HORA, ELÉTRICA POTÊNCIA 30 CV | E150: CHI | F150: 0,0068000 | G150: 133.79 | H150: 0.9 | I150: v
H151: 0
B152: PRODUÇÃO DA EQUIPE | E152: 1 | F152: CUSTO | H152: =SUM(H137:H151) -> 153
B153: TOTAL | H153: =H152/E152 -> 153 | I153: Ok
A155: 14 | B155: CODEVASF | E155: COMPOSIÇÃO DE PREÇO UNITÁRIO | I155: =H163 -> 0.76 | J155: =H165 -> 0.92
B156: OBRA: | C156: =$C$2 -> PAVIMENTAÇÃO ASFÁLTICA EM PMF (PRE-MIST. A FRIO) - RECAPEAMENTO - VIAS DIVERSAS - RUBIM-MG | G156: DATA: | H156: =$H$2 -> NOVEMBRO DE 2024
B157: SERVIÇO: | C157: =VLOOKUP(A155,ORÇAMENTO!$A$11:$L$37,5,0) -> TRANSPORTE COM CAMINHÃO BASCULANTE, EM VIA URBANA PAVIMENTADA | E157: REFERÊNCIA | F157: =VLOOKUP(A155,ORÇAMENTO!A$11:L$37,3,0) -> 95427 | G157: UNIDADE: | H157: =VLOOKUP(A155,ORÇAMENTO!$A$11:$L$24,7,0) -> M3XKM
B159: TIPO ITEM | C159: CODIGO ITEM | D159: DESCRIÇÃO ITEM | E159: UNIDADE ITEM | F159: COEFICIENTE | G159: PRECO UNITARIO | H159: CUSTO TOTAL
B160: COMPOSICAO | C160: 89883 | D160: CAMINHÃO BASCULANTE 18 M3, COM CAVALO MECÂNICO DE CAPACIDADE MÁXIMA DE TRAÇÃO COMBINADO DE 45000 KG, POTÊNCIA 330 CV, INCLUSIVE SEMIREBOQUE COM CAÇAMBA METÁLICA | E160: CHP | F160: 0,0019000 | G160: 366.36 | H160: =ROUNDDOWN(F160*G160,2) -> 0.69
B161: COMPOSICAO | C161: 89884 | D161: CAMINHÃO BASCULANTE 18 M3, COM CAVALO MECÂNICO DE CAPACIDADE MÁXIMA DE TRAÇÃO COMBINADO DE 45000 KG, POTÊNCIA 330 CV, INCLUSIVE SEMIREBOQUE COM CAÇAMBA METÁLICA | E161: CHI | F161: 0,0008000 | G161: 95.31 | H161: 0.07
B162: PRODUÇÃO DA EQUIPE | E162: 1 | F162: CUSTO | H162: =SUM(H160:H161) -> 0.76
B163: TOTAL | H163: =H162/E162 -> 0.76 | I163: Ok
B164: BDI % | H164: =1+$M$1 -> 1.2122
B165: TOTAL DO SERVIÇO - R$ | H165: =TRUNC(H163*H164,2) -> 0.92
A167: 14.5 | B167: CODEVASF | E167: COMPOSIÇÃO DE PREÇO UNITÁRIO | I167: =H175 -> 1.66 | J167: =H177 -> 2.01
B168: OBRA: | C168: =$C$2 -> PAVIMENTAÇÃO ASFÁLTICA EM PMF (PRE-MIST. A FRIO) - RECAPEAMENTO - VIAS DIVERSAS - RUBIM-MG | G168: DATA: | H168: =$H$2 -> NOVEMBRO DE 2024
B169: SERVIÇO: | C169: =VLOOKUP(A167,ORÇAMENTO!$A$11:$L$37,5,0) -> TRANSPORTE COM CAMINHÃO BASCULANTE, EM VIA DE REVESTIMENTO PRIMÁRIO | E169: REFERÊNCIA | F169: =VLOOKUP(A167,ORÇAMENTO!A$11:L$37,3,0) -> 95426 | G169: UNIDADE: | H169: =VLOOKUP(A167,ORÇAMENTO!$A$11:$L$24,7,0) -> M3XKM
B171: TIPO ITEM | C171: CODIGO ITEM | D171: DESCRIÇÃO ITEM | E171: UNIDADE ITEM | F171: COEFICIENTE | G171: PRECO UNITARIO | H171: CUSTO TOTAL
B172: COMPOSICAO | C172: 89883 | D172: CAMINHÃO BASCULANTE 18 M3, COM CAVALO MECÂNICO DE CAPACIDADE MÁXIMA DE TRAÇÃO COMBINADO DE 45000 KG, POTÊNCIA 330 CV, INCLUSIVE SEMIREBOQUE COM CAÇAMBA METÁLICA | E172: CHP | F172: 0.004 | G172: =G160 -> 366.36 | H172: =ROUNDDOWN(F172*G172,2) -> 1.46 | I172: ajust.
B173: COMPOSICAO | C173: 89884 | D173: CAMINHÃO BASCULANTE 18 M3, COM CAVALO MECÂNICO DE CAPACIDADE MÁXIMA DE TRAÇÃO COMBINADO DE 45000 KG, POTÊNCIA 330 CV, INCLUSIVE SEMIREBOQUE COM CAÇAMBA METÁLICA | E173: CHI | F173: 0,0022000 | G173: =G161 -> 95.31 | H173: 0.2
B174: PRODUÇÃO DA EQUIPE | E174: 1 | F174: CUSTO | H174: =SUM(H172:H173) -> 1.66
B175: TOTAL | H175: =H174/E174 -> 1.66 | I175: Ok
B176: BDI % | H176: =1+$M$1 -> 1.2122
B177: TOTAL DO SERVIÇO - R$ | H177: =TRUNC(H175*H176,2) -> 2.01
A179: 15 | B179: CODEVASF | E179: COMPOSIÇÃO DE PREÇO UNITÁRIO | I179: =H191 -> 22.45 | J179: =H193 -> 27.21
B180: OBRA: | C180: =$C$2 -> PAVIMENTAÇÃO ASFÁLTICA EM PMF (PRE-MIST. A FRIO) - RECAPEAMENTO - VIAS DIVERSAS - RUBIM-MG | G180: DATA: | H180: =$H$2 -> NOVEMBRO DE 2024
B181: SERVIÇO: | C181: =VLOOKUP(A179,ORÇAMENTO!$A$11:$L$24,5,0) -> EXECUÇÃO DE SARJETA DE CONCRETO USINADO, MOLDADA IN LOCO EM TRECHO RETO, 30 CM BASE X 5 CM ALTURA | E181: REFERÊNCIA | F181: =VLOOKUP(A179,ORÇAMENTO!A$11:L$37,3,0) -> 94287a | G181: UNIDADE: | H181: =VLOOKUP(A179,ORÇAMENTO!$A$11:$L$24,7,0) -> M
B183: TIPO ITEM | C183: CODIGO ITEM | D183: DESCRIÇÃO ITEM | E183: UNIDADE ITEM | F183: COEFICIENTE | G183: PRECO UNITARIO | H183: CUSTO TOTAL
B184: INSUMO | C184: 370 | D184: AREIA MEDIA - POSTO JAZIDA/FORNECEDOR (RETIRADO NA JAZIDA, SEM TRANSPORTE) | E184: M3 | F184: 0,0099000 | G184: 130,00 | H184: =ROUNDDOWN(F184*G184,2) -> 1.28
B185: INSUMO | C185: 4517 | D185: SARRAFO *2,5 X 7,5* CM EM PINUS, MISTA OU EQUIVALENTE DA REGIAO - BRUTA | E185: M | F185: 0,2000000 | G185: 2,77 | H185: 0.55
B186: INSUMO | C186: 6189 | D186: TABUA NAO APARELHADA *2,5 X 30* CM, EM MACARANDUBA/MASSARANDUBA, ANGELIM OU EQUIVALENTE DA REGIAO - BRUTA | E186: M | F186: 0,0833000 | G186: 13,15 | H186: 1.09
B187: INSUMO | C187: 34492a | D187: CONCRETO USINADO BOMBEAVEL, CLASSE DE RESISTENCIA C20, COM BRITA 0 E 1, SLUMP = 100 +/- 20 MM, EXCLUI SERVICO DE BOMBEAMENTO (NBR 8953) | E187: M3 | F187: =0.3*0.05 -> 0.015 | G187: 550,00 | H187: 8.25 | I187: Ajust.
B188: COMPOSICAO | C188: 88309 | D188: PEDREIRO COM ENCARGOS COMPLEMENTARES | E188: H | F188: 0,2326000 | G188: 28,15 | H188: 6.54
B189: COMPOSICAO | C189: 88316 | D189: SERVENTE COM ENCARGOS COMPLEMENTARES | E189: H | F189: 0,2326000 | G189: 20,41 | H189: 4.74
B190: PRODUÇÃO DA EQUIPE | E190: 1 | F190: CUSTO | H190: =SUM(H184:H189) -> 22.45
B191: TOTAL | H191: =H190/E190 -> 22.45 | I191: Ok
B192: BDI % | H192: =1+$M$1 -> 1.2122
B193: TOTAL DO SERVIÇO - R$ | H193: =TRUNC(H191*H192,2) -> 27.21
A195: 16 | B195: CODEVASF | E195: COMPOSIÇÃO DE PREÇO UNITÁRIO | I195: =H208 -> 484.7 | J195: =H210 -> 587.55
B196: OBRA: | C196: =$C$2 -> PAVIMENTAÇÃO ASFÁLTICA EM PMF (PRE-MIST. A FRIO) - RECAPEAMENTO - VIAS DIVERSAS - RUBIM-MG | G196: DATA: | H196: =$H$2 -> NOVEMBRO DE 2024
B197: SERVIÇO: | C197: =VLOOKUP(A195,ORÇAMENTO!$A$11:$L$36,5,0) -> FORNECIMENTO E INSTALAÇÃO DE PLACA DE SINALIZAÇÃO VIÁRIA - REGULAMENTAÇÃO (FAIXA DE PEDESTRE E OUTROS) - CONFORME PROJETO | E197: REFERÊNCIA | F197: =VLOOKUP(A195,ORÇAMENTO!A$11:L$37,3,0) -> CPU.4 | G197: UNIDADE: | H197: =VLOOKUP(A195,ORÇAMENTO!$A$11:$L$36,7,0) -> UNID
B199: TIPO ITEM | C199: CODIGO ITEM | D199: DESCRIÇÃO ITEM | E199: UNIDADE ITEM | F199: COEFICIENTE | G199: PRECO UNITARIO | H199: CUSTO TOTAL
B200: COMPOSICAO | C200: 94962 | D200: CONCRETO MAGRO PARA LASTRO, TRAÇO 1:4,5:4,5 (EM MASSA SECA DE CIMENTO/ AREIA / BRITA 1) | E200: M3 | F200: 0.024 | G200: 429.71 | H200: =ROUNDDOWN(F200*G200,2) -> 10.31
B201: COMPOSICAO | C201: 93358 | D201: ESCAVAÇÃO MANUAL DE VALA COM PROFUNDIDADE MENOR OU IGUAL A 1,30 M | E201: M3 | F201: 0.024 | G201: 80.73 | H201: 1.93
B202: COMPOSICAO | C202: 88309 | D202: PEDREIRO COM ENCARGOS COMPLEMENTARES | E202: H | F202: 0.2 | G202: 28.15 | H202: 5.63
B203: COMPOSICAO | C203: 88316 | D203: SERVENTE COM ENCARGOS COMPLEMENTARES | E203: H | F203: 1 | G203: 20.41 | H203: 20.41
B204: COMPOSICAO | C204: 103670 | D204: LANÇAMENTO COM USO DE BALDES, ADENSAMENTO E ACABAMENTO DE CONCRETO EM ESTRUTURAS | E204: M3 | F204: 0.024 | G204: 290.26 | H204: 6.96
B205: INSUMO | C205: 34723 | D205: PLACA DE SINALIZACAO EM CHAPA DE ACO NUM 16 COM PINTURA REFLETIVA (CIRCULAR - D=50CM) | E205: M2 | F205: =0.75*0.5 -> 0.375 | G205: 577.5 | H205: 216.56
B206: INSUMO | C206: 21013 | D206: TUBO AÇO GALVANIZADO COM COSTURA, CLASSE LEVE, DN 50 MM ( 2")E = 3,00 MM, 4,40 KG/M | E206: M | F206: 3 | G206: 74.3 | H206: 222.9
B207: PRODUÇÃO DA EQUIPE | E207: 1 | F207: CUSTO | H207: =SUM(H200:H206) -> 484.7
B208: TOTAL | H208: =H207/E207 -> 484.7 | I208: Ok
B209: BDI % | H209: =1+$M$1 -> 1.2122
B210: TOTAL DO SERVIÇO - R$ | H210: =TRUNC(H208*H209,2) -> 587.55
A212: 17 | B212: CODEVASF | E212: COMPOSIÇÃO DE PREÇO UNITÁRIO | I212: =H225 -> 478.54 | J212: =H227 -> 580.08
B213: OBRA: | C213: =$C$2 -> PAVIMENTAÇÃO ASFÁLTICA EM PMF (PRE-MIST. A FRIO) - RECAPEAMENTO - VIAS DIVERSAS - RUBIM-MG | G213: DATA: | H213: =$H$2 -> NOVEMBRO DE 2024
B214: SERVIÇO: | C214: =VLOOKUP(A212,ORÇAMENTO!$A$11:$L$36,5,0) -> FORNECIMENTO E INSTALAÇÃO DE PLACA DE SINALIZAÇÃO VIÁRIA - REGULAMENTAÇÃO (PARE) | E214: REFERÊNCIA | F214: =VLOOKUP(A212,ORÇAMENTO!A$11:L$37,3,0) -> CPU.5 | G214: UNIDADE: | H214: =VLOOKUP(A212,ORÇAMENTO!$A$11:$L$36,7,0) -> UNID
B216: TIPO ITEM | C216: CODIGO ITEM | D216: DESCRIÇÃO ITEM | E216: UNIDADE ITEM | F216: COEFICIENTE | G216: PRECO UNITARIO | H216: CUSTO TOTAL
B217: COMPOSICAO | C217: 94962 | D217: CONCRETO MAGRO PARA LASTRO, TRAÇO 1:4,5:4,5 (EM MASSA SECA DE CIMENTO/ AREIA/ BRITA 1) | E217: M3 | F217: 0.024 | G217: =G200 -> 429.71 | H217: =ROUNDDOWN(F217*G217,2) -> 10.31
B218: COMPOSICAO | C218: 93358 | D218: ESCAVAÇÃO MANUAL DE VALA COM PROFUNDIDADE MENOR OU IGUAL A 1,30 M | E218: M3 | F218: 0.024 | G218: =G201 -> 80.73 | H218: 1.93
B219: COMPOSICAO | C219: 88309 | D219: PEDREIRO COM ENCARGOS COMPLEMENTARES | E219: H | F219: 0.2 | G219: 28.15 | H219: 5.63
B220: COMPOSICAO | C220: 88316 | D220: SERVENTE COM ENCARGOS COMPLEMENTARES | E220: H | F220: 1 | G220: 20.41 | H220: 20.41
B221: COMPOSICAO | C221: 103670 | D221: LANÇAMENTO COM USO DE BALDES, ADENSAMENTO E ACABAMENTO DE CONCRETO EM ESTRUTURAS | E221: M3 | F221: 0.024 | G221: 290.26 | H221: 6.96
B222: INSUMO | C222: 34723 | D222: PLACA DE SINALIZACAO EM CHAPA DE ACO NUM 16 COM PINTURA REFLETIVA | E222: M2 | F222: =4*0.3*0.25 -> 0.3 | G222: 577.5 | H222: 173.25
B223: INSUMO | C223: 21013 | D223: TUBO AÇO GALVANIZADO COM COSTURA, CLASSE LEVE, DN 50 MM (2")E = 3,00 MM, *4,40* KG/M | E223: M | F223: 3.5 | G223: 74.3 | H223: 260.05
B224: PRODUÇÃO DA EQUIPE | E224: 1 | F224: CUSTO | H224: =SUM(H217:H223) -> 478.54
B225: TOTAL | H225: =H224/E224 -> 478.54 | I225: Ok
B226: BDI % | H226: =1+$M$1 -> 1.2122
B227: TOTAL DO SERVIÇO - R$ | H227: =TRUNC(H225*H226,2) -> 580.08
... 94 more rows

Sheet BDI SERV
B1: DETALHAMENTO DO BDI - SERVIÇOS
B4: Item | C4: Descrição dos Serviços | D4: % | E4: %
D5: PV | E5: CD
B7: 1 | C7: ADMINISTRAÇÃO CENTRAL | E7: 4.01
B8: 1.1 | C8: ESCRITÓRIO CENTRAL
B9: 1.2 | C9: VIAGENS
B10: 1.3 | C10: OUTROS
B12: 2 | C12: IMPOSTOS E TAXAS | D12: =SUM(D13:D16) -> 5.65 | E12: =SUM(E13:E16) -> 7.06
B13: 2.1 | C13: ISS (*) | D13: 2 | E13: =ROUND(D13*1.2515,2) -> 2.5
B14: 2.2 | C14: PIS | D14: 0.65 | E14: 0.81
B15: 2.3 | C15: Cofins | D15: 3 | E15: 3.75
B16: 2.4 | C16: CONTRIBUIÇÃO PREVIDENCIÁRIA SOBRE A RENDA BRUTA | D16: 0 | E16: 0
B18: 3 | C18: TAXA DE RISCO | E18: =SUM(E19:E22) -> 0.82
B19: 3.1 | C19: SEGURO | E19: 0.16
B20: 3.2 | C20: RISCO | E20: 0.5
B21: 3.3 | C21: GARANTIA | E21: 0.16
B23: 4 | C23: DESPESAS FINANCEIRAS | E23: 1.02
B25: 5 | C25: LUCRO | E25: 8
C27: BDI - CALCULADO | E27: =ROUND((((1+(E7+E18)/100)*(1+E23/100)*(1+E25/100)/(1-D12/100)-1)*100),2) -> 21.22
A29: BDI = ((1+((AC+S+R+G)/100))x(1+DF/100)x(1+L/100)/(1-I/100)-1)*100
B31: BDI (CALCULADO): | D31: =ROUND((((1+((E7+E18)/100))*(1+E23/100)*(1+E25/100))/(1-D12/100)-1)*100,2) -> 21.22 | E31: %
A33: (*) ISS CONFORME DECLARAÇÃO ENVIADA PELA PREFEITURA MUNICIPAL DE RUBIM
A37: BDI EM CONFORMIDADE COM OS ACÓRDÃOS Nº 2369/2011 e ACÓRDÃO Nº 2.622/2013 - TCU - PLENÁRIO

Sheet BDI FORN
B1: DETALHAMENTO DO BDI - FORNECIMENTO (MATERIAL ASFÁLTICO)
B4: Item | C4: Descrição dos Serviços | D4: % | E4: %
D5: PV | E5: CD
B7: 1 | C7: ADMINISTRAÇÃO CENTRAL | E7: 3.72
B8: 1.1 | C8: ESCRITÓRIO CENTRAL
B9: 1.2 | C9: VIAGENS
B10: 1.3 | C10: OUTROS
B12: 2 | C12: IMPOSTOS E TAXAS | D12: =SUM(D13:D16) -> 3.65 | E12: =SUM(E13:E16) -> 4.56
B13: 2.1 | C13: ISS (*) | E13: =ROUND(D13*1.2515,2) -> 0
B14: 2.2 | C14: PIS | D14: 0.65 | E14: 0.81
B15: 2.3 | C15: Cofins | D15: 3 | E15: 3.75
B16: 2.4 | C16: CONTRIBUIÇÃO PREVIDENCIÁRIA SOBRE A RENDA BRUTA | D16: 0 | E16: 0
B18: 3 | C18: TAXA DE RISCO | E18: =SUM(E19:E22) -> 0.92
B19: 3.1 | C19: SEGURO | E19: 0.16
B20: 3.2 | C20: RISCO | E20: 0.6
B21: 3.3 | C21: GARANTIA | E21: 0.16
B23: 4 | C23: DESPESAS FINANCEIRAS | E23: 0.85
B25: 5 | C25: LUCRO | E25: 5
C27: BDI - CALCULADO | E27: =ROUND((((1+(E7+E18)/100)*(1+E23/100)*(1+E25/100)/(1-D12/100)-1)*100),2) -> 15
A29: BDI = ((1+((AC+S+R+G)/100))x(1+DF/100)x(1+L/100)/(1-I/100)-1)*100
B31: BDI (CALCULADO): | D31: =ROUND((((1+((E7+E18)/100))*(1+E23/100)*(1+E25/100))/(1-D12/100)-1)*100,2) -> 15 | E31: %
A37: BDI EM CONFORMIDADE COM OS ACÓRDÃOS Nº 2369/2011 e ACÓRDÃO Nº 2.622/2013 - TCU - PLENÁRIO

Sheet CRONOGRAMA
B1: CRONOGRAMA FÍSICO-FINANCEIRO
B2: OBRA: | C2: =ORÇAMENTO!C5 -> PAVIMENTAÇÃO ASFÁLTICA EM PMF (PRE-MIST. A FRIO) - RECAPEAMENTO - VIAS DIVERSAS - RUBIM-MG | F2: VALOR: | G2: =ORÇAMENTO!L37 -> 1805925
F3: PRAZO: | G3: 180 DIAS
B5: ITEM | C5: ETAPAS/DESCRIÇAO | D5: FISICO/ FINANCEIRO | E5: TOTAL ETAPAS | F5: MÊS 1 | G5: MÊS 2 | H5: MÊS 3 | I5: MÊS 4 | J5: MÊS 5 | K5: MÊS 6 | L5: TOTAL
A6: A | B6: =VLOOKUP(A6,ORÇAMENTO!$A$10:$L$37,2) -> 1 | C6: =VLOOKUP(A6,ORÇAMENTO!$A$10:$L$37,5) -> SERVIÇOS PRELIMINARES | D6: FISICO | E6: =ROUND(E7/$G$2,4) -> 0.069 | F6: 0.25 | G6: 0.15 | H6: 0.15 | I6: 0.15 | J6: 0.15 | K6: 0.15 | L6: =SUM(F6:K6) -> 1
D7: FINANCEIRO | E7: =ORÇAMENTO!L10 -> 124571.97 | F7: =ROUND($E$7*F6,2) -> 31142.99 | G7: =ROUND($E$7*G6,2) -> 18685.8 | H7: 18685.8 | I7: 18685.8 | J7: 18685.8 | K7: 18685.8 | L7: =SUM(F7:K7) -> 124571.99
A8: B | B8: =VLOOKUP(A8,ORÇAMENTO!$A$10:$L$37,2) -> 2 | C8: =VLOOKUP(A8,ORÇAMENTO!$A$10:$L$37,5) -> PAVIMENTAÇÃO | D8: FISICO | E8: =ROUND(E9/$G$2,4) -> 0.2842 | F8: 0.2 | G8: 0.2 | H8: 0.2 | I8: 0.2 | J8: 0.2 | K8: 0 | L8: =SUM(F8:K8) -> 1
D9: FINANCEIRO | E9: =ORÇAMENTO!L15 -> 513271.1 | F9: =ROUND($E$9*F8,2) -> 102654.22 | G9: =ROUND($E$9*G8,2) -> 102654.22 | H9: 102654.22 | I9: 102654.22 | J9: 102654.22 | K9: 0 | L9: 513271.1
A10: C | B10: =VLOOKUP(A10,ORÇAMENTO!$A$10:$L$37,2) -> 3 | C10: =VLOOKUP(A10,ORÇAMENTO!$A$10:$L$37,5) -> TRANSPORTE DE MATERIAIS | D10: FISICO | E10: =ROUND(E11/$G$2,4) -> 0.0369 | F10: 0.2 | G10: 0.2 | H10: 0.2 | I10: 0.2 | J10: 0.2 | K10: 0 | L10: 1
D11: FINANCEIRO | E11: =ORÇAMENTO!L20 -> 66610 | F11: =ROUND($E$11*F10,2) -> 13322 | G11: =ROUND($E$11*G10,2) -> 13322 | H11: 13322 | I11: 13322 | J11: 13322 | K11: 0 | L11: 66610
A12: E | B12: =VLOOKUP(A12,ORÇAMENTO!$A$10:$L$37,2) -> 4 | C12: =VLOOKUP(A12,ORÇAMENTO!$A$10:$L$37,5) -> OBRAS COMPLEMENTARES | D12: FISICO | E12: =ROUND(E13/$G$2,4) -> 0.1725 | F12: 0 | G12: 0.2 | H12: 0.2 | I12: 0.2 | J12: 0.2 | K12: 0.2 | L12: 1
D13: FINANCEIRO | E13: =ORÇAMENTO!L23 -> 311524.67 | F13: =ROUND($E$13*F12,2) -> 0 | G13: =ROUND($E$13*G12,2) -> 62304.93 | H13: 62304.93 | I13: 62304.93 | J13: 62304.93 | K13: 62304.93 | L13: 311524.65
A14: F | B14: =VLOOKUP(A14,ORÇAMENTO!$A$10:$L$37,2) -> 5 | C14: =VLOOKUP(A14,ORÇAMENTO!$A$10:$L$37,5) -> TRANSPORTE DE MATERIAL ASFÁLTICO (BDI DIFERENCIADO) | D14: FISICO | E14: =ROUND(E15/$G$2,4) -> 0.0674 | F14: 0.25 | G14: 0.25 | H14: 0.25 | I14: 0.25 | J14: 0 | K14: 0 | L14: 1
D15: FINANCEIRO | E15: =ORÇAMENTO!L30 -> 121709.99 | F15: =ROUND($E$15*F14,2) -> 30427.5 | G15: =ROUND($E$15*G14,2) -> 30427.5 | H15: =ROUND($E$15*H14,2) -> 30427.5 | I15: 30427.5 | J15: 0 | K15: 0 | L15: 121710
A16: G | B16: =VLOOKUP(A16,ORÇAMENTO!$A$10:$L$37,2) -> 6 | C16: =VLOOKUP(A16,ORÇAMENTO!$A$10:$L$37,5) -> FORNECIMENTOS - MATERIAL ASFÁLTICO (BDI DIFERENCIADO) | D16: FISICO | E16: =ROUND(E17/$G$2,4) -> 0.37 | F16: 0.25 | G16: 0.25 | H16: 0.25 | I16: 0.25 | J16: 0 | K16: 0 | L16: 1
D17: FINANCEIRO | E17: =ORÇAMENTO!L34 -> 668237.27 | F17: =ROUND($E$17*F16,2) -> 167059.32 | G17: =ROUND($E$17*G16,2) -> 167059.32 | H17: =ROUND($E$17*H16,2) -> 167059.32 | I17: 167059.32 | J17: 0 | K17: 0 | L17: 668237.28
B18: TOTAL | D18: FISICO | E18: =SUM(F18:K18) -> 1.000000011 | F18: =F19/E19 -> 0.1908196797 | G18: =G19/E19 -> 0.2184220109 | H18: =H19/E19 -> 0.2184220109 | I18: =I19/E19 -> 0.2184220109 | J18: =J19/E19 -> 0.1090670709 | K18: =K19/E19 -> 0.04484722787 | L18: 1.000000011
D19: FINANCEIRO | E19: =E11+E9+E7+E13+E17+E15 -> 1805925 | F19: =F11+F9+F7+F13+F17+F15 -> 344606.03 | G19: =G11+G9+G7+G13+G17+G15 -> 394453.77 | H19: =H11+H9+H7+H13+H17+H15 -> 394453.77 | I19: 394453.77 | J19: 196966.95 | K19: 80990.73 | L19: =SUM(F19:K19)-0.02 -> 1805925
B21: OBSERVAÇÕES:
